[Event "Snabbschacks-SM 2025"]
[Site "Norrköping, Sweden"]
[Date "2025.09.28"]
[Round "6.1"]
[White "Muntean, Victor"]
[Black "Grahn, Vidar"]
[Result "1-0"]
[TimeControl "25 min + 10 sec/move"]
[BlackTitle "FM"]
[WhiteElo "2151"]
[BlackElo "2236"]

1. e4 {[%clk 00:25:18]} {[%emt 00:00:01]} c5 {[%clk 00:25:19]} {[%emt
00:00:01]} 2. c3 {[%clk 00:25:25]} {[%emt 00:00:03]} Nf6 {[%clk 00:25:24]}
{[%emt 00:00:05]} 3. e5 {[%clk 00:25:34]} {[%emt 00:00:02]} Nd5 {[%clk
00:25:32]} {[%emt 00:00:02]} 4. Nf3 {[%clk 00:25:42]} {[%emt 00:00:01]} d6
{[%clk 00:25:30]} {[%emt 00:00:13]} 5. Na3 {[%clk 00:25:49]} {[%emt 00:00:02]}
e6 {[%clk 00:25:30]} {[%emt 00:00:11]} 6. g3 {[%clk 00:25:03]} {[%emt
00:00:55]} dxe5 {[%clk 00:25:35]} {[%emt 00:00:05]} 7. Nxe5 {[%clk 00:25:11]}
{[%emt 00:00:02]} Nd7 {[%clk 00:25:44]} {[%emt 00:00:01]} 8. Nxd7 {[%clk
00:23:51]} {[%emt 00:01:29]} Bxd7 {[%clk 00:25:49]} {[%emt 00:00:06]} 9. Bg2
{[%clk 00:23:57]} {[%emt 00:00:04]} Be7 {[%clk 00:23:16]} {[%emt 00:02:43]} 10.
O-O {[%clk 00:23:53]} {[%emt 00:00:14]} O-O {[%clk 00:22:59]} {[%emt 00:00:26]}
11. Re1 {[%clk 00:23:40]} {[%emt 00:00:23]} Bf6 {[%clk 00:21:45]} {[%emt
00:01:25]} 12. Nc2 {[%clk 00:21:05]} {[%emt 00:02:45]} Bc6 {[%clk 00:21:04]}
{[%emt 00:00:51]} 13. d4 {[%clk 00:20:46]} {[%emt 00:00:28]} c4 {[%clk
00:21:05]} {[%emt 00:00:09]} 14. Ne3 {[%clk 00:19:01]} {[%emt 00:01:55]} Nxe3
{[%clk 00:21:01]} {[%emt 00:00:14]} 15. fxe3 {[%clk 00:18:33]} {[%emt
00:00:38]} Bxg2 {[%clk 00:20:43]} {[%emt 00:00:29]} 16. Kxg2 {[%clk 00:18:40]}
{[%emt 00:00:01]} e5 {[%clk 00:19:46]} {[%emt 00:01:09]} 17. Qf3 {[%clk
00:15:54]} {[%emt 00:02:56]} Qe7 {[%clk 00:18:01]} {[%emt 00:01:54]} 18. dxe5
{[%clk 00:12:55]} {[%emt 00:03:10]} Bxe5 {[%clk 00:17:56]} {[%emt 00:00:15]} 19.
e4 {[%clk 00:12:44]} {[%emt 00:00:21]} Rad8 {[%clk 00:17:53]} {[%emt 00:00:12]}
20. Be3 {[%clk 00:12:18]} {[%emt 00:00:35]} a6 {[%clk 00:15:13]} {[%emt
00:02:52]} 21. Rad1 {[%clk 00:12:02]} {[%emt 00:00:26]} b5 {[%clk 00:14:39]}
{[%emt 00:00:43]} 22. Rd5 {[%clk 00:10:33]} {[%emt 00:01:39]} Rfe8 {[%clk
00:13:34]} {[%emt 00:01:16]} 23. Red1 {[%clk 00:08:52]} {[%emt 00:01:51]} Bf6
{[%clk 00:12:20]} {[%emt 00:01:23]} 24. Rxd8 {[%clk 00:06:23]} {[%emt
00:02:39]} Rxd8 {[%clk 00:12:29]} {[%emt 00:00:02]} 25. Bd4 {[%clk 00:06:32]}
Bxd4 {[%clk 00:10:16]} {[%emt 00:02:23]} 26. cxd4 {[%clk 00:06:19]} {[%emt
00:00:23]} Qb4 {[%clk 00:09:15]} {[%emt 00:01:11]} 27. Qc3 {[%clk 00:05:43]}
{[%emt 00:00:45]} Qa4 {[%clk 00:08:56]} {[%emt 00:00:28]} 28. Ra1 {[%clk
00:05:49]} {[%emt 00:00:05]} Rc8 {[%clk 00:08:49]} {[%emt 00:00:17]} 29. a3
{[%clk 00:04:18]} {[%emt 00:01:41]} a5 {[%clk 00:08:50]} {[%emt 00:00:09]} 30.
Rc1 {[%clk 00:03:09]} {[%emt 00:01:19]} b4 {[%clk 00:08:40]} {[%emt 00:00:21]}
31. Qd3 {[%clk 00:03:04]} {[%emt 00:00:14]} Qc6 {[%clk 00:08:05]} {[%emt
00:00:45]} 32. d5 {[%clk 00:02:43]} {[%emt 00:00:32]} Qc5 {[%clk 00:07:51]}
{[%emt 00:00:24]} 33. axb4 {[%clk 00:02:30]} {[%emt 00:00:23]} axb4 {[%clk
00:07:52]} {[%emt 00:00:09]} 34. d6 {[%clk 00:02:06]} {[%emt 00:00:34]} c3
{[%clk 00:06:07]} {[%emt 00:01:55]} 35. d7 {[%clk 00:01:57]} {[%emt 00:00:19]}
Rd8 {[%clk 00:06:09]} {[%emt 00:00:08]} 36. bxc3 {[%clk 00:01:59]} {[%emt
00:00:08]} Qc6 {[%clk 00:05:40]} {[%emt 00:00:37]} 37. Qd5 {[%clk 00:01:10]}
{[%emt 00:01:02]} Qc7 {[%clk 00:04:09]} {[%emt 00:01:41]} 38. Qb5 {[%clk
00:00:48]} {[%emt 00:00:31]} bxc3 {[%clk 00:03:49]} {[%emt 00:00:30]} 39. Qb4
{[%clk 00:00:29]} {[%emt 00:00:29]} Qxd7 {[%clk 00:03:46]} {[%emt 00:00:14]} 40.
Qxc3 {[%clk 00:00:32]} {[%emt 00:00:06]} h5 {[%clk 00:03:28]} {[%emt 00:00:28]}
41. h4 {[%clk 00:00:24]} {[%emt 00:00:18]} Qg4 {[%clk 00:03:24]} {[%emt
00:00:14]} 42. Qe3 {[%clk 00:00:29]} {[%emt 00:00:05]} Ra8 {[%clk 00:02:50]}
{[%emt 00:00:42]} 43. Rc2 {[%clk 00:00:20]} {[%emt 00:00:21]} Ra1 {[%clk
00:02:24]} {[%emt 00:00:34]} 44. Qe2 {[%clk 00:00:26]} {[%emt 00:00:06]} Qg6
{[%clk 00:02:07]} {[%emt 00:00:28]} 45. Rc8+ {[%clk 00:00:24]} {[%emt
00:00:11]} Kh7 {[%clk 00:02:06]} {[%emt 00:00:12]} 46. Rc5 {[%clk 00:00:33]}
Kg8 {[%clk 00:01:45]} {[%emt 00:00:32]} 47. Rxh5 {[%clk 00:00:24]} {[%emt
00:00:18]} Qe6 {[%clk 00:01:18]} {[%emt 00:00:37]} 48. Rd5 {[%clk 00:00:33]}
{[%emt 00:00:02]} Ra4 {[%clk 00:01:17]} {[%emt 00:00:11]} 49. Rd8+ {[%clk
00:00:31]} {[%emt 00:00:12]} Kh7 {[%clk 00:01:26]} 50. Qh5+ {[%clk 00:00:32]}
{[%emt 00:00:08]} Qh6 {[%clk 00:01:35]} {[%emt 00:00:02]} 51. Qxf7 {[%clk
00:00:30]} {[%emt 00:00:12]} Ra6 {[%clk 00:01:11]} {[%emt 00:00:33]} 52. h5
{[%clk 00:00:29]} {[%emt 00:00:12]} Qf6 {[%clk 00:00:48]} {[%emt 00:00:33]} 53.
Qg8+ {[%clk 00:00:26]} {[%emt 00:00:12]} Kh6 {[%clk 00:00:57]} {[%emt
00:00:01]} 54. Qh8+ {[%clk 00:00:35]} {[%emt 00:00:02]} Kg5 {[%clk 00:01:04]}
{[%emt 00:00:02]} 55. Rd5+ {[%clk 00:00:43]} {[%emt 00:00:02]} Kg4 {[%clk
00:01:10]} {[%emt 00:00:04]} 56. Qc8+ {[%clk 00:00:52]} {[%emt 00:00:02]} Re6
{[%clk 00:01:16]} {[%emt 00:00:04]} 57. Rf5 {[%clk 00:00:43]} {[%emt 00:00:19]}
Qb2+ {[%clk 00:01:04]} {[%emt 00:00:22]} 58. Rf2 {[%clk 00:00:51]} {[%emt
00:00:02]} Qe5 {[%clk 00:01:06]} {[%emt 00:00:08]} 59. Rf4+ {[%clk 00:00:45]}
{[%emt 00:00:16]} Kxh5 {[%clk 00:01:14]} {[%emt 00:00:02]} 60. Rf5+ {[%clk
00:00:53]} {[%emt 00:00:01]} 1-0

[Event "Snabbschacks-SM 2025"]
[Site "Norrköping, Sweden"]
[Date "2025.09.28"]
[Round "9.3"]
[White "Religa, Marek"]
[Black "Lindh, Fredrik"]
[Result "1/2-1/2"]
[TimeControl "25 min + 10 sec/move"]
[BlackTitle "FM"]
[WhiteElo "2207"]
[BlackElo "2249"]

1. c4 {[%clk 00:25:19]} c6 {[%clk 00:25:18]} {[%emt 00:00:03]} 2. e4 {[%clk
00:25:25]} {[%emt 00:00:04]} d5 {[%clk 00:25:26]} {[%emt 00:00:02]} 3. exd5
{[%clk 00:25:34]} cxd5 {[%clk 00:25:35]} {[%emt 00:00:01]} 4. cxd5 {[%clk
00:25:43]} {[%emt 00:00:01]} Nf6 {[%clk 00:25:43]} {[%emt 00:00:02]} 5. Nc3
{[%clk 00:25:52]} Nxd5 {[%clk 00:25:37]} {[%emt 00:00:17]} 6. Nf3 {[%clk
00:26:01]} Nc6 {[%clk 00:25:38]} {[%emt 00:00:09]} 7. Bc4 {[%clk 00:26:07]}
{[%emt 00:00:04]} Nb6 {[%clk 00:25:00]} {[%emt 00:00:47]} 8. Bb3 {[%clk
00:26:16]} {[%emt 00:00:02]} g6 {[%clk 00:25:01]} {[%emt 00:00:08]} 9. d4
{[%clk 00:26:23]} {[%emt 00:00:03]} Bg7 {[%clk 00:24:58]} {[%emt 00:00:14]} 10.
d5 {[%clk 00:26:32]} {[%emt 00:00:01]} Na5 {[%clk 00:25:07]} 11. O-O {[%clk
00:25:47]} {[%emt 00:00:55]} O-O {[%clk 00:24:25]} {[%emt 00:00:52]} 12. h3
{[%clk 00:25:38]} {[%emt 00:00:18]} Bf5 {[%clk 00:24:04]} {[%emt 00:00:31]} 13.
Re1 {[%clk 00:25:23]} {[%emt 00:00:25]} Rc8 {[%clk 00:23:40]} {[%emt 00:00:34]}
14. Bg5 {[%clk 00:25:01]} {[%emt 00:00:32]} Re8 {[%clk 00:23:44]} {[%emt
00:00:07]} 15. g4 {[%clk 00:21:31]} {[%emt 00:03:40]} Nac4 {[%clk 00:18:35]}
{[%emt 00:05:19]} 16. Re2 {[%clk 00:18:51]} {[%emt 00:02:50]} Nxb2 {[%clk
00:15:07]} {[%emt 00:03:39]} 17. Rxb2 {[%clk 00:18:57]} {[%emt 00:00:04]} Bxc3
{[%clk 00:15:15]} {[%emt 00:00:02]} 18. Re2 {[%clk 00:18:01]} {[%emt 00:01:06]}
Bd3 {[%clk 00:09:59]} {[%emt 00:05:26]} 19. Re3 {[%clk 00:13:47]} {[%emt
00:04:24]} Bxa1 {[%clk 00:10:04]} {[%emt 00:00:05]} 20. Rxd3 {[%clk 00:13:56]}
Bf6 {[%clk 00:06:54]} {[%emt 00:03:19]} 21. d6 {[%clk 00:13:26]} {[%emt
00:00:41]} Bxg5 {[%clk 00:04:04]} {[%emt 00:03:00]} 22. Bxf7+ {[%clk 00:11:58]}
{[%emt 00:01:38]} Kxf7 {[%clk 00:04:12]} 23. Nxg5+ {[%clk 00:12:07]} {[%emt
00:00:01]} Kg8 {[%clk 00:04:21]} {[%emt 00:00:01]} 24. d7 {[%clk 00:11:14]}
{[%emt 00:01:03]} Nxd7 {[%clk 00:02:37]} {[%emt 00:01:53]} 25. Rxd7 {[%clk
00:10:10]} {[%emt 00:01:14]} Qb6 {[%clk 00:02:27]} {[%emt 00:00:21]} 26. Qd5+
{[%clk 00:08:38]} {[%emt 00:01:41]} e6 {[%clk 00:02:36]} {[%emt 00:00:02]} 27.
Qxb7 {[%clk 00:07:46]} {[%emt 00:01:02]} Qxb7 {[%clk 00:01:52]} {[%emt
00:00:53]} 28. Rxb7 {[%clk 00:07:55]} {[%emt 00:00:01]} h6 {[%clk 00:01:50]}
{[%emt 00:00:12]} 29. Nf7 {[%clk 00:07:36]} {[%emt 00:00:29]} Rb8 {[%clk
00:00:55]} {[%emt 00:01:05]} 30. Nxh6+ {[%clk 00:07:35]} {[%emt 00:00:12]} Kh8
{[%clk 00:01:04]} {[%emt 00:00:01]} 31. Rxa7 {[%clk 00:06:09]} {[%emt
00:01:36]} Ra8 {[%clk 00:01:13]} 32. Rd7 {[%clk 00:05:41]} {[%emt 00:00:38]}
Rxa2 {[%clk 00:01:05]} {[%emt 00:00:18]} 33. Nf7+ {[%clk 00:05:26]} {[%emt
00:00:25]} Kg8 {[%clk 00:01:13]} {[%emt 00:00:02]} 34. Nh6+ {[%clk 00:05:34]}
{[%emt 00:00:02]} Kh8 {[%clk 00:01:21]} {[%emt 00:00:02]} 35. g5 {[%clk
00:04:33]} {[%emt 00:01:11]} Rf8 {[%clk 00:00:58]} {[%emt 00:00:33]} 36. Nf7+
{[%clk 00:04:26]} {[%emt 00:00:16]} Kg8 {[%clk 00:01:02]} {[%emt 00:00:06]} 37.
Nh6+ {[%clk 00:04:33]} {[%emt 00:00:03]} Kh8 {[%clk 00:01:11]} 38. Nf7+ {[%clk
00:04:08]} {[%emt 00:00:35]} Kg8 {[%clk 00:01:20]} {[%emt 00:00:02]} 39. Nh6+
{[%clk 00:04:17]} Kh8 1/2-1/2

[Event "Snabbschacks-SM 2025"]
[Site "Norrköping, Sweden"]
[Date "2025.09.28"]
[Round "6.2"]
[White "Smith, Axel"]
[Black "Religa, Marek"]
[Result "1-0"]
[TimeControl "25 min + 10 sec/move"]
[WhiteTitle "GM"]
[WhiteElo "2431"]
[BlackElo "2207"]

1. e4 {[%clk 00:25:19]} g6 {[%clk 00:25:16]} {[%emt 00:00:04]} 2. d4 {[%clk
00:25:23]} {[%emt 00:00:05]} Bg7 {[%clk 00:25:25]} {[%emt 00:00:01]} 3. Nc3
{[%clk 00:25:32]} {[%emt 00:00:02]} d6 {[%clk 00:25:32]} {[%emt 00:00:03]} 4.
f4 {[%clk 00:25:40]} {[%emt 00:00:02]} Nf6 {[%clk 00:25:38]} {[%emt 00:00:05]}
5. Nf3 {[%clk 00:25:40]} {[%emt 00:00:09]} O-O {[%clk 00:25:46]} {[%emt
00:00:02]} 6. e5 {[%clk 00:25:25]} {[%emt 00:00:26]} dxe5 {[%clk 00:25:52]}
{[%emt 00:00:04]} 7. fxe5 {[%clk 00:25:04]} {[%emt 00:00:30]} Nd5 {[%clk
00:26:01]} {[%emt 00:00:02]} 8. Bc4 {[%clk 00:24:56]} {[%emt 00:00:18]} Nxc3
{[%clk 00:26:10]} 9. bxc3 {[%clk 00:25:04]} {[%emt 00:00:02]} c5 {[%clk
00:26:19]} 10. O-O {[%clk 00:21:27]} {[%emt 00:03:48]} Nc6 {[%clk 00:26:28]}
{[%emt 00:00:01]} 11. Ng5 {[%clk 00:13:37]} {[%emt 00:08:00]} e6 {[%clk
00:26:12]} {[%emt 00:00:26]} 12. Be3 {[%clk 00:13:01]} {[%emt 00:00:45]} Ne7
{[%clk 00:22:38]} {[%emt 00:03:44]} 13. Ne4 {[%clk 00:09:40]} {[%emt 00:03:30]}
cxd4 {[%clk 00:22:47]} {[%emt 00:00:02]} 14. cxd4 {[%clk 00:09:41]} {[%emt
00:00:10]} Nf5 {[%clk 00:22:56]} {[%emt 00:00:01]} 15. Bf2 {[%clk 00:09:23]}
{[%emt 00:00:27]} Bd7 {[%clk 00:21:30]} {[%emt 00:01:37]} 16. g4 {[%clk
00:08:52]} {[%emt 00:00:40]} Nh4 {[%clk 00:17:22]} {[%emt 00:04:18]} 17. Be3
{[%clk 00:04:15]} {[%emt 00:04:47]} h6 {[%clk 00:15:31]} {[%emt 00:02:02]} 18.
Nf6+ {[%clk 00:03:47]} {[%emt 00:00:37]} Kh8 {[%clk 00:14:16]} {[%emt
00:01:25]} 19. Qd2 {[%clk 00:03:13]} {[%emt 00:00:45]} Rc8 {[%clk 00:11:50]}
{[%emt 00:02:36]} 20. Bb3 {[%clk 00:02:22]} {[%emt 00:01:00]} Bc6 {[%clk
00:10:42]} {[%emt 00:01:18]} 21. Bxh6 {[%clk 00:02:30]} {[%emt 00:00:03]} Nf3+
{[%clk 00:09:42]} {[%emt 00:01:10]} 22. Rxf3 {[%clk 00:02:38]} {[%emt
00:00:01]} Bxf3 {[%clk 00:09:52]} 23. Rf1 {[%clk 00:02:16]} {[%emt 00:00:32]}
Bxg4 {[%clk 00:06:44]} {[%emt 00:03:17]} 24. Nxg4 {[%clk 00:02:13]} {[%emt
00:00:13]} Qh4 {[%clk 00:06:51]} {[%emt 00:00:03]} 25. Bxg7+ {[%clk 00:01:53]}
{[%emt 00:00:30]} Kxg7 {[%clk 00:07:00]} 26. Qf4 {[%clk 00:01:34]} {[%emt
00:00:30]} b5 {[%clk 00:05:40]} 27. Rf3 {[%clk 00:01:03]} {[%emt 00:02:11]} b4
{[%clk 00:05:27]} 28. Kg2 {[%clk 00:00:41]} {[%emt 00:00:55]} Rc3 {[%clk
00:05:10]} 29. Qf6+ {[%clk 00:00:45]} {[%emt 00:00:33]} Qxf6 {[%clk 00:05:18]}
30. exf6+ {[%clk 00:00:52]} {[%emt 00:00:05]} Kh7 31. Rxc3 {[%clk 00:00:59]}
bxc3 {[%clk 00:05:21]} 32. Kf3 {[%clk 00:01:06]} {[%emt 00:00:03]} g5 {[%clk
00:05:19]} {[%emt 00:00:12]} 33. Ne5 {[%clk 00:01:14]} {[%emt 00:00:01]} Rh8
{[%clk 00:04:33]} {[%emt 00:00:56]} 34. d5 {[%clk 00:01:06]} {[%emt 00:00:19]}
exd5 {[%clk 00:03:44]} {[%emt 00:00:59]} 35. Bxd5 {[%clk 00:01:14]} Re8 {[%clk
00:02:55]} {[%emt 00:00:58]} 36. Ke4 {[%clk 00:01:21]} {[%emt 00:00:04]} Rd8
{[%clk 00:02:57]} {[%emt 00:00:09]} 37. Bxf7 {[%clk 00:01:19]} {[%emt
00:00:12]} Rd2 {[%clk 00:03:03]} {[%emt 00:00:04]} 38. Bb3 {[%clk 00:01:07]}
{[%emt 00:00:22]} Rd8 {[%clk 00:01:15]} {[%emt 00:01:57]} 39. Kf5 {[%clk
00:01:11]} {[%emt 00:00:07]} a5 {[%clk 00:00:58]} {[%emt 00:00:27]} 40. Kxg5
{[%clk 00:01:05]} {[%emt 00:00:15]} 1-0

[Event "Snabbschacks-SM 2025"]
[Site "Norrköping, Sweden"]
[Date "2025.09.28"]
[Round "7.8"]
[White "Ostling, Hakan"]
[Black "Jonsson, Krister"]
[Result "1-0"]
[TimeControl "25 min + 10 sec/move"]
[WhiteElo "2117"]
[BlackElo "2022"]

1. f4 {[%clk 00:24:28]} {[%emt 00:00:01]} d5 {[%clk 00:25:06]} {[%emt
00:00:14]} 2. Nf3 {[%clk 00:24:32]} {[%emt 00:00:06]} Nf6 {[%clk 00:25:14]}
{[%emt 00:00:03]} 3. g3 {[%clk 00:24:39]} {[%emt 00:00:03]} g6 {[%clk
00:25:17]} {[%emt 00:00:07]} 4. Bg2 {[%clk 00:24:45]} {[%emt 00:00:03]} Bg7
{[%clk 00:25:26]} 5. O-O {[%clk 00:24:52]} {[%emt 00:00:02]} O-O {[%clk
00:25:33]} {[%emt 00:00:05]} 6. d3 {[%clk 00:24:47]} {[%emt 00:00:15]} c5
{[%clk 00:25:25]} {[%emt 00:00:18]} 7. Nc3 {[%clk 00:24:28]} {[%emt 00:00:29]}
Nc6 {[%clk 00:25:24]} {[%emt 00:00:12]} 8. e4 {[%clk 00:24:29]} {[%emt
00:00:09]} d4 {[%clk 00:23:29]} {[%emt 00:02:05]} 9. Ne2 {[%clk 00:23:18]}
{[%emt 00:01:21]} b6 {[%clk 00:22:26]} {[%emt 00:01:13]} 10. h3 {[%clk
00:21:19]} {[%emt 00:02:08]} Bb7 {[%clk 00:22:19]} {[%emt 00:00:18]} 11. g4
{[%clk 00:18:42]} {[%emt 00:00:32]} Qc7 12. Qe1 {[%clk 00:14:50]} {[%emt
00:07:16]} Nb4 13. Nexd4 {[%emt 00:06:28]} cxd4 {[%clk 00:15:12]} {[%emt
00:00:20]} 14. Qxb4 {[%emt 00:00:12]} Qxc2 {[%emt 00:01:34]} 15. Qxe7 {[%emt
00:04:04]} Rab8 {[%emt 00:01:13]} 16. Qa3 {[%emt 00:00:42]} Rfd8 {[%emt
00:02:51]} 17. Ne1 {[%emt 00:00:32]} Qc7 {[%clk 00:10:11]} {[%emt 00:00:09]} 18.
Bd2 {[%emt 00:01:24]} a6 {[%clk 00:09:07]} {[%emt 00:00:05]} 19. Rc1 {[%clk
00:09:54]} {[%emt 00:00:05]} Qd7 {[%clk 00:09:14]} {[%emt 00:00:03]} 20. Nf3
{[%clk 00:09:49]} {[%emt 00:00:14]} Ne8 {[%clk 00:08:24]} {[%emt 00:01:01]} 21.
Ng5 {[%clk 00:08:23]} {[%emt 00:01:35]} h6 {[%clk 00:07:56]} {[%emt 00:00:38]}
22. Nf3 {[%clk 00:08:31]} {[%emt 00:00:02]} Nd6 {[%clk 00:07:15]} {[%emt
00:00:51]} 23. Qb3 {[%emt 00:00:53]} Ba8 {[%emt 00:00:54]} 24. Ne5 {[%emt
00:00:41]} Qb5 {[%emt 00:01:03]} 25. Qxb5 {[%clk 00:07:11]} {[%emt 00:00:06]}
Nxb5 {[%clk 00:05:52]} {[%emt 00:00:05]} 26. Nc6 {[%emt 00:00:05]} Bxc6 27.
Rxc6 Na7 {[%emt 00:00:24]} 28. Rc2 {[%emt 00:00:25]} Rdc8 {[%clk 00:05:27]}
{[%emt 00:00:13]} 29. Rfc1 {[%emt 00:00:47]} Kf8 {[%emt 00:00:35]} 30. Bb4+
{[%clk 00:06:58]} {[%emt 00:00:03]} Ke8 {[%clk 00:04:59]} {[%emt 00:00:02]} 31.
e5 {[%emt 00:00:29]} Rxc2 {[%clk 00:04:48]} {[%emt 00:00:01]} 32. Rxc2 {[%emt
00:00:08]} Kd7 {[%clk 00:04:51]} 33. Bd5 {[%emt 00:00:24]} g5 {[%clk 00:04:31]}
{[%emt 00:00:29]} 34. Bxf7 {[%clk 00:06:48]} {[%emt 00:00:17]} gxf4 {[%clk
00:04:36]} {[%emt 00:00:05]} 1-0

[Event "Snabbschacks-SM 2025"]
[Site "Norrköping, Sweden"]
[Date "2025.09.28"]
[Round "6.3"]
[White "Livner, Anders"]
[Black "Wernberg, Hugo"]
[Result "1/2-1/2"]
[TimeControl "25 min + 10 sec/move"]
[WhiteTitle "FM"]
[BlackTitle "FM"]
[WhiteElo "2292"]
[BlackElo "2285"]

1. Nf3 {[%clk 00:25:17]} {[%emt 00:00:01]} d5 {[%clk 00:25:03]} {[%emt
00:00:18]} 2. g3 {[%clk 00:25:25]} {[%emt 00:00:02]} c5 {[%clk 00:25:03]}
{[%emt 00:00:10]} 3. Bg2 {[%clk 00:25:29]} {[%emt 00:00:05]} g6 {[%clk
00:25:12]} {[%emt 00:00:02]} 4. c4 {[%clk 00:24:20]} {[%emt 00:01:20]} dxc4
{[%clk 00:25:20]} {[%emt 00:00:02]} 5. Na3 {[%clk 00:24:21]} {[%emt 00:00:08]}
Bg7 {[%clk 00:25:25]} {[%emt 00:00:05]} 6. Nxc4 {[%clk 00:24:28]} {[%emt
00:00:03]} Nc6 {[%clk 00:25:28]} {[%emt 00:00:07]} 7. O-O {[%clk 00:24:05]}
{[%emt 00:00:33]} Nf6 {[%clk 00:25:36]} {[%emt 00:00:02]} 8. d3 {[%clk
00:24:05]} {[%emt 00:00:10]} Nd5 {[%clk 00:25:44]} {[%emt 00:00:02]} 9. Qb3
{[%clk 00:20:35]} {[%emt 00:03:39]} b6 {[%clk 00:23:48]} {[%emt 00:02:07]} 10.
Nce5 {[%clk 00:15:07]} {[%emt 00:05:38]} Nxe5 {[%clk 00:18:00]} {[%emt
00:05:59]} 11. Nxe5 {[%clk 00:15:15]} {[%emt 00:00:01]} Bb7 {[%clk 00:18:09]}
12. Qb5+ {[%clk 00:12:24]} {[%emt 00:03:01]} Kf8 {[%clk 00:18:17]} {[%emt
00:00:02]} 13. Nd7+ {[%clk 00:12:19]} {[%emt 00:00:15]} Kg8 {[%clk 00:18:16]}
{[%emt 00:00:11]} 14. Nxc5 {[%clk 00:12:23]} {[%emt 00:00:05]} Nc7 {[%clk
00:13:37]} {[%emt 00:04:50]} 15. Nxb7 {[%clk 00:12:31]} {[%emt 00:00:02]} Nxb5
{[%clk 00:13:44]} {[%emt 00:00:03]} 16. Nxd8 {[%clk 00:12:40]} {[%emt
00:00:02]} Rxd8 {[%clk 00:13:52]} {[%emt 00:00:01]} 17. Be3 {[%clk 00:12:20]}
{[%emt 00:00:30]} Nd4 {[%clk 00:13:17]} {[%emt 00:00:45]} 18. Bxd4 {[%clk
00:12:21]} {[%emt 00:00:09]} Bxd4 {[%clk 00:13:24]} {[%emt 00:00:03]} 19. Rac1
{[%clk 00:11:48]} {[%emt 00:00:43]} Rd7 {[%clk 00:12:53]} {[%emt 00:00:42]} 20.
b4 {[%clk 00:11:32]} {[%emt 00:00:26]} Kg7 {[%clk 00:11:35]} {[%emt 00:01:27]}
21. Rc2 {[%clk 00:10:44]} {[%emt 00:00:57]} Bf6 {[%clk 00:08:53]} {[%emt
00:02:52]} 22. Rb1 {[%clk 00:10:35]} {[%emt 00:00:18]} Rhd8 {[%clk 00:08:35]}
{[%emt 00:00:29]} 23. Be4 {[%clk 00:10:14]} {[%emt 00:00:31]} Be5 {[%clk
00:07:45]} {[%emt 00:01:02]} 24. Kg2 {[%clk 00:09:04]} {[%emt 00:01:18]} Rc7
{[%clk 00:07:22]} {[%emt 00:00:33]} 25. Rxc7 {[%clk 00:08:29]} {[%emt
00:00:46]} Bxc7 {[%clk 00:07:31]} {[%emt 00:00:02]} 26. Rc1 {[%clk 00:07:33]}
{[%emt 00:01:05]} Bd6 {[%clk 00:06:47]} {[%emt 00:00:54]} 27. a3 {[%clk
00:07:40]} {[%emt 00:00:03]} a5 {[%clk 00:06:40]} {[%emt 00:00:17]} 28. bxa5
{[%clk 00:07:47]} {[%emt 00:00:03]} bxa5 {[%clk 00:06:32]} {[%emt 00:00:18]} 29.
a4 {[%clk 00:07:43]} {[%emt 00:00:14]} Rb8 {[%clk 00:06:19]} {[%emt 00:00:23]}
30. Kf3 {[%clk 00:07:03]} {[%emt 00:00:50]} Rb4 {[%clk 00:06:16]} {[%emt
00:00:12]} 31. Bc6 {[%clk 00:07:05]} {[%emt 00:00:09]} h5 {[%clk 00:05:29]}
{[%emt 00:00:57]} 32. h4 {[%clk 00:07:04]} {[%emt 00:00:11]} Rd4 {[%clk
00:04:53]} {[%emt 00:00:45]} 33. Bb5 {[%clk 00:07:00]} {[%emt 00:00:14]} Rd5
{[%clk 00:04:33]} {[%emt 00:00:31]} 34. Rc6 {[%clk 00:06:42]} {[%emt 00:00:28]}
Rf5+ {[%clk 00:04:19]} {[%emt 00:00:24]} 35. Kg2 {[%clk 00:06:47]} {[%emt
00:00:03]} Rc5 {[%clk 00:03:15]} {[%emt 00:01:15]} 36. Ra6 {[%clk 00:06:21]}
{[%emt 00:00:37]} Rc2 {[%clk 00:03:23]} {[%emt 00:00:02]} 37. Kf3 {[%clk
00:05:34]} {[%emt 00:00:57]} Bb4 {[%clk 00:03:30]} {[%emt 00:00:03]} 38. Bc4
{[%clk 00:05:15]} {[%emt 00:00:29]} Rc1 {[%clk 00:03:38]} {[%emt 00:00:02]} 39.
Ra8 {[%clk 00:02:54]} {[%emt 00:02:31]} Ra1 {[%clk 00:03:37]} {[%emt 00:00:10]}
40. Bb5 {[%clk 00:02:57]} {[%emt 00:00:07]} Rf1 {[%clk 00:03:39]} {[%emt
00:00:09]} 41. Kg2 {[%clk 00:02:51]} {[%emt 00:00:15]} Re1 {[%clk 00:03:47]}
{[%emt 00:00:03]} 42. Kf3 {[%clk 00:01:48]} {[%emt 00:01:13]} Rf1 {[%clk
00:03:55]} {[%emt 00:00:02]} 43. Kg2 {[%clk 00:01:20]} {[%emt 00:00:37]} Re1
{[%clk 00:04:04]} {[%emt 00:00:01]} 44. Kf3 {[%clk 00:01:20]} {[%emt 00:00:10]}
1/2-1/2